bitfinex-derivatives/quotes_SOLF0:USTF0_20240912
["timestamp","ask_amount","ask_price","bid_price","bid_amount"]
[1726157319509,3.3665,133.68,133.65,11.49]
[1726157320412,7.09150514,133.69,133.65,11.49]
[1726157320612,3.3662,133.69,133.65,11.49]
[1726157320814,11.49,133.71,133.65,11.49]
[1726157321016,11.49,133.73,133.66,11.49]
[1726157321927,3.366,133.7,133.66,11.49]
[1726157323018,5.19203395,133.76,133.69,11.49]
[1726157323225,16.68203395,133.76,133.7,11.49]
[1726157323521,3.3652,133.73,133.7,11.49]
[1726157323821,16.68203395,133.76,133.65,1.4127]
[1726157324010,16.68203395,133.76,133.69,11.49]
[1726157324210,3.3653,133.73,133.69,11.49]
[1726157324807,3.365,133.74,133.69,11.49]
[1726157325011,15.24533395,133.76,133.71,11.49]
[1726157326817,14.20831802,133.79,133.72,11.49]
[1726157327023,11.49,133.78,133.72,11.49]
[1726157327518,3.3648,133.75,133.72,11.49]
[1726157332124,3.3644,133.76,133.73,11.49]
[1726157336217,7.05482757,133.77,133.73,11.49]
[1726157336419,3.3642,133.77,133.73,11.49]
[1726157336933,7.09933299,133.77,133.73,11.49]
[1726157337119,3.3642,133.77,133.73,11.49]
[1726157337624,7.15581257,133.77,133.73,11.49]
[1726157337820,3.3644,133.76,133.73,11.49]
[1726157341329,3.3642,133.77,133.73,11.49]
[1726157348132,3.3639,133.78,133.74,11.49]
[1726157348329,12.9335,133.82,133.76,11.49]
[1726157348634,11.49,133.83,133.77,11.49]
[1726157348835,3.363,133.82,133.79,11.49]
[1726157349926,3.3627,133.83,133.79,11.49]
[1726157350131,103.52966426,133.85,133.8,11.49]
[1726157350529,3.3627,133.83,133.8,11.49]
[1726157350938,103.52966426,133.85,133.8,11.49]
[1726157351233,3.3626,133.84,133.8,11.49]
[1726157351536,107.24171749,133.85,133.79,11.49]
[1726157351938,11.49,133.83,133.75,4.2891]
[1726157352136,11.49,133.83,133.76,11.49]
[1726157352335,3.3633,133.81,133.76,11.49]
[1726157352532,11.49,133.84,133.78,11.49]
[1726157353137,3.363,133.82,133.78,11.49]
[1726157353333,33.96,133.84,133.75,4.2891]
[1726157353538,11.49,133.83,133.75,4.2891]
[1726157353742,11.49,133.83,133.76,11.49]
[1726157354131,3.3631,133.81,133.76,11.49]
[1726157354933,3.3635,133.8,133.76,11.49]
[1726157356341,11.49,133.81,133.76,11.49]
[1726157357838,3.3637,133.79,133.76,11.49]
[1726157358841,3.3639,133.78,133.75,4.2891]
[1726157359046,3.3639,133.78,133.75,2.8521]
[1726157359649,3.3643,133.77,133.75,2.8521]
[1726157360052,11.49,133.81,133.75,2.8521]
[1726157360654,3.3637,133.79,133.75,2.8521]
[1726157361153,11.49,133.82,133.76,11.49]
[1726157361753,3.3635,133.8,133.76,11.49]
[1726157362149,3.3629,133.82,133.77,11.49]
[1726157362356,11.49,133.84,133.77,11.49]
[1726157362758,3.363,133.82,133.77,11.49]
[1726157363157,11.49,133.84,133.77,11.49]
[1726157363553,3.3631,133.81,133.77,11.49]
[1726157365047,11.49,133.84,133.77,11.49]
[1726157365453,118.22171749,133.85,133.77,11.49]
[1726157365653,129.71171749,133.85,133.79,11.49]
[1726157365855,129.71171749,133.85,133.78,11.49]
[1726157366460,3.3626,133.83,133.78,11.49]
[1726157366966,3.3626,133.83,133.79,11.49]
[1726157367662,3.363,133.82,133.79,11.49]
[1726157367858,107.24171749,133.85,133.75,2.8521]
[1726157367859,11.49,133.83,133.75,2.8521]
[1726157368156,3.3635,133.8,133.75,2.8521]
[1726157368348,11.49,133.83,133.76,11.49]
[1726157368752,3.3632,133.81,133.76,11.49]
[1726157368954,11.49,133.82,133.76,11.49]
[1726157369264,3.3635,133.8,133.76,11.49]
[1726157371463,3.3636,133.79,133.76,11.49]
[1726157375963,3.3639,133.78,133.76,11.49]
[1726157376150,11.49,133.82,133.76,11.49]
[1726157376558,33.96,133.82,133.75,14.3421]
[1726157377158,11.49,133.8,133.75,2.8521]
[1726157378268,3.364,133.78,133.75,2.8521]
[1726157379662,3.3644,133.76,133.71,3.3655]
[1726157379875,3.3644,133.76,133.72,11.49]
[1726157380880,3.3644,133.76,133.72,11.49]
[1726157381165,3.3642,133.77,133.73,11.49]
[1726157381667,3.3642,133.77,133.73,12.9913]
[1726157381872,3.364,133.78,133.73,16.3563]
[1726157382173,22.47,133.84,133.76,11.49]
[1726157382358,3.3635,133.8,133.76,11.49]
[1726157382563,33.96,133.83,133.76,11.49]
[1726157382871,3.3635,133.8,133.76,11.49]
[1726157383657,33.96,133.83,133.76,11.49]
[1726157383862,22.47,133.83,133.74,2.8734]
[1726157384068,3.3631,133.81,133.77,11.49]
[1726157386063,3.3631,133.81,133.77,11.49]
[1726157390369,3.3634,133.8,133.77,11.49]
[1726157392274,3.3637,133.79,133.75,11.49]
[1726157392776,3.3639,133.78,133.75,11.49]
[1726157393368,3.3637,133.79,133.75,11.49]
[1726157395190,3.3635,133.8,133.75,14.8545]
[1726157395477,3.3635,133.8,133.76,11.49]
[1726157397875,33.96,133.8,133.74,1.4526]
[1726157398183,11.49,133.79,133.74,1.4526]
[1726157398381,3.82907133,133.78,133.74,1.4526]
[1726157398581,3.3642,133.77,133.74,1.4526]
[1726157398883,3.82907133,133.78,133.73,1.5013]
[1726157399084,11.49,133.78,133.73,1.5013]
[1726157399270,3.3645,133.76,133.73,1.5013]
[1726157399671,3.3646,133.76,133.73,1.5013]
[1726157400383,3.3646,133.75,133.73,1.5013]
[1726157402174,3.3649,133.74,133.73,1.5013]
[1726157402582,11.49,133.77,133.73,1.5013]
[1726157404875,3.3647,133.75,133.73,1.5013]
[1726157405081,15.14267246,133.78,133.73,1.5013]
[1726157405289,11.49,133.78,133.73,1.5013]
[1726157405484,3.3643,133.77,133.73,1.5013]
[1726157406290,3.3641,133.77,133.73,1.5013]
[1726157406989,3.3648,133.75,133.71,11.49]
[1726157407180,3.3648,133.75,133.71,13.1347]
[1726157408394,3.3649,133.74,133.71,13.1347]
[1726157410087,3.3647,133.75,133.71,13.1347]
[1726157410884,1.5445,133.81,133.72,11.49]
[1726157411088,138.58695481,133.94,133.75,11.49]
[1726157411294,26.04770687,133.85,133.75,11.49]
[1726157411488,11.49,133.82,133.76,1.7025]
[1726157412193,3.3635,133.8,133.76,1.7025]
[1726157415290,3.3637,133.79,133.76,1.7025]
[1726157417697,11.49,133.82,133.77,11.49]
[1726157418098,11.49,133.81,133.76,1.7025]
[1726157419701,3.3635,133.8,133.76,1.7025]
[1726157420494,11.49,133.81,133.76,1.7025]
[1726157421086,3.364,133.78,133.69,1.5613]
[1726157421287,11.49,133.81,133.74,11.49]
[1726157421690,11.49,133.82,133.75,11.49]
[1726157422794,3.3635,133.8,133.75,11.49]
[1726157423298,3.3632,133.81,133.77,11.49]
[1726157423601,33.96,133.84,133.78,11.49]
[1726157424485,5.31965323,133.85,133.78,11.49]
[1726157424691,11.49,133.84,133.78,11.49]
[1726157425901,3.363,133.82,133.78,11.49]
[1726157426196,5.31965323,133.85,133.78,11.49]
[1726157426388,11.49,133.87,133.82,11.49]
[1726157426891,3.3622,133.85,133.82,11.49]
[1726157428102,15.28476635,133.86,133.81,1.6121]
[1726157428297,11.49,133.86,133.81,1.6121]
[1726157428799,3.3628,133.83,133.81,1.6121]
[1726157429890,3.74345997,133.85,133.81,1.6121]
[1726157430401,3.3624,133.84,133.81,1.6121]
[1726157431305,3.3622,133.85,133.81,1.6121]
[1726157431501,11.49,133.89,133.82,11.49]
[1726157431995,3.3618,133.86,133.82,11.49]
[1726157432997,3.3622,133.85,133.82,11.49]
[1726157433193,11.49,133.89,133.82,11.49]
[1726157433408,15.22187322,133.89,133.82,11.49]
[1726157434108,3.3621,133.86,133.82,11.49]
[1726157435601,15.22187322,133.89,133.82,11.49]
[1726157436407,11.49,133.87,133.82,11.49]
[1726157436809,3.3623,133.85,133.82,11.49]
[1726157439204,3.3623,133.85,133.81,1.6121]
[1726157439407,3.3624,133.84,133.81,1.6121]
[1726157443410,3.3622,133.85,133.81,1.6121]
[1726157443609,3.3622,133.85,133.82,11.49]
[1726157445215,11.49,133.9,133.83,11.49]
[1726157445514,15.15571983,133.9,133.83,11.49]
[1726157446102,3.3618,133.87,133.83,11.49]
[1726157446609,3.3618,133.86,133.83,11.49]
[1726157447413,3.3616,133.87,133.83,11.49]
[1726157448612,3.3619,133.86,133.83,11.49]
[1726157451311,11.49,133.87,133.81,13.1021]
[1726157451818,3.3622,133.85,133.81,13.1021]
[1726157452402,3.3621,133.86,133.81,13.1021]
[1726157452606,3.66320352,133.87,133.81,13.1021]
[1726157453903,3.3621,133.85,133.81,13.1021]
[1726157455614,3.3619,133.86,133.82,11.49]
[1726157456924,3.3622,133.85,133.81,1.6121]
[1726157457110,11.49,133.88,133.81,13.1021]
[1726157457607,3.80867679,133.87,133.81,13.1021]
[1726157457810,3.3625,133.84,133.81,13.1021]
[1726157460411,3.3622,133.85,133.81,13.1021]
[1726157460613,3.3622,133.85,133.82,11.49]
[1726157460816,3.78812167,133.87,133.82,11.49]
[1726157461114,11.49,133.88,133.82,11.49]
[1726157461621,24.9307,133.92,133.82,11.49]
[1726157461816,11.49,133.89,133.82,11.49]
[1726157462124,3.362,133.86,133.82,11.49]
[1726157462324,3.362,133.86,133.84,11.49]
[1726157462824,3.3621,133.85,133.82,11.49]
[1726157463019,15.20337817,133.88,133.81,3.2898]
[1726157463223,45.64828117,133.92,133.81,3.2898]
[1726157463224,11.49,133.86,133.81,3.2898]
[1726157463524,15.14396113,133.86,133.81,3.2898]
[1726157463728,3.3625,133.84,133.81,3.2898]
[1726157463917,11.49,133.87,133.81,3.2898]
[1726157464120,3.79073243,133.88,133.83,11.49]
[1726157464423,11.49,133.89,133.83,11.49]
[1726157464722,11.49,133.9,133.84,11.49]
[1726157465420,3.3615,133.88,133.84,11.49]
[1726157465623,11.49,133.91,133.84,11.49]
[1726157465817,15.20823617,133.91,133.84,11.49]
[1726157466122,3.3615,133.88,133.84,11.49]
[1726157466324,3.71823617,133.91,133.86,11.49]
[1726157466823,3.3614,133.88,133.86,11.49]
[1726157467024,3.71823617,133.91,133.86,11.49]
[1726157467330,3.3613,133.89,133.86,11.49]
[1726157467923,3.3614,133.88,133.86,11.49]
[1726157468421,3.3611,133.89,133.86,11.49]
[1726157470630,3.3609,133.9,133.87,11.49]
[1726157471029,103.46533048,133.94,133.87,11.49]
[1726157471219,3.3607,133.91,133.87,11.49]
[1726157471926,3.3611,133.89,133.87,11.49]
[1726157472323,3.75691428,133.91,133.87,11.49]
[1726157472724,3.361,133.9,133.87,11.49]
[1726157472923,3.361,133.9,133.86,1.5673]
[1726157472924,11.49,133.9,133.86,1.5673]
[1726157473426,3.71356815,133.89,133.86,1.5673]
[1726157474630,3.3615,133.88,133.86,1.5673]
[1726157474925,91.97533048,133.94,133.86,13.0573]
[1726157475230,3.3607,133.91,133.88,11.49]
[1726157476334,3.3605,133.92,133.88,11.49]
[1726157476532,3.3605,133.92,133.89,11.49]
[1726157477029,103.46533048,133.94,133.89,11.49]
[1726157477634,11.49,133.92,133.86,3.1432]
[1726157477836,3.3608,133.9,133.86,14.6332]
[1726157478033,15.25008906,133.91,133.86,3.1432]
[1726157478344,11.49,133.9,133.86,1.5673]
[1726157478635,3.3615,133.88,133.86,1.5673]
[1726157479136,11.49,133.88,133.82,11.49]
[1726157479340,3.3617,133.87,133.82,13.0567]
[1726157479728,3.3617,133.87,133.82,14.7017]
[1726157480121,3.3617,133.87,133.82,18.0645]
[1726157483537,3.3617,133.87,133.84,11.49]
[1726157484534,3.3619,133.86,133.82,14.7017]
[1726157484738,3.3619,133.86,133.82,3.2117]
[1726157484939,11.49,133.88,133.83,11.49]
[1726157485640,3.3618,133.87,133.83,11.49]
[1726157486032,11.49,133.88,133.83,11.49]
[1726157486228,3.3618,133.87,133.83,11.49]
[1726157487345,11.49,133.88,133.83,11.49]
[1726157487533,11.49,133.87,133.82,3.2117]
[1726157487941,3.362,133.86,133.82,3.2117]
[1726157488339,15.13359913,133.87,133.82,3.2117]
[1726157488646,3.362,133.86,133.82,3.2117]
[1726157489537,3.74448845,133.88,133.82,18.0644]
[1726157489741,11.49,133.89,133.82,18.0644]
[1726157490342,3.3617,133.87,133.82,18.0644]
[1726157492445,3.3619,133.86,133.82,18.0644]
[1726157492647,15.30660563,133.89,133.84,11.49]
[1726157492854,3.3615,133.88,133.84,11.49]
[1726157493051,15.30660563,133.89,133.84,11.49]
[1726157493353,15.30660563,133.89,133.82,14.7017]
[1726157493653,3.3616,133.87,133.82,14.7017]
[1726157494660,3.3616,133.87,133.82,18.0645]
[1726157496149,3.3616,133.87,133.84,11.49]
[1726157496652,11.49,133.9,133.84,11.49]
[1726157496846,11.49,133.91,133.85,11.49]
[1726157497054,103.46533048,133.94,133.88,11.49]
[1726157497357,3.72991555,133.93,133.88,11.49]
[1726157497557,103.46533048,133.94,133.88,11.49]
[1726157498055,1.6837,133.97,133.87,3.2321]
[1726157498056,1.6837,133.97,133.9,11.49]
[1726157498249,11.49,133.95,133.89,11.49]
[1726157498449,3.3602,133.93,133.89,11.49]
[1726157499548,3.3599,133.94,133.89,11.49]
[1726157501058,3.3601,133.93,133.87,6.5935]
[1726157501260,3.3601,133.93,133.88,11.49]
[1726157502055,3.3604,133.92,133.87,14.7221]
[1726157502257,15.14231499,133.94,133.87,14.7221]
[1726157502759,11.49,133.93,133.87,3.2321]
[1726157502957,3.3607,133.91,133.87,3.2321]
[1726157504253,3.8198679,133.92,133.87,14.7221]
[1726157504254,3.3604,133.92,133.87,14.7221]
[1726157504558,1.6837,133.97,133.89,11.49]
[1726157504559,15.16527783,133.94,133.89,11.49]
[1726157504761,11.49,133.94,133.89,11.49]
[1726157504959,3.3602,133.93,133.89,11.49]
[1726157505262,3.3602,133.93,133.9,11.49]
[1726157506358,11.49,133.96,133.87,6.5936]
[1726157506561,11.49,133.94,133.89,11.49]
[1726157506859,3.7260019,133.93,133.89,11.49]
[1726157507064,3.3604,133.92,133.89,11.49]
[1726157507565,3.7260019,133.93,133.87,14.7221]
[1726157507566,15.2160019,133.93,133.87,14.7221]
[1726157507763,3.3607,133.91,133.87,14.7221]
[1726157509963,3.3607,133.91,133.88,11.49]
[1726157510359,3.3604,133.92,133.88,11.49]
[1726157510668,3.3604,133.92,133.9,11.49]
[1726157511359,3.3602,133.93,133.9,11.49]
[1726157511757,3.3604,133.92,133.9,11.49]
[1726157512967,11.49,133.95,133.9,11.49]
[1726157512968,3.3601,133.93,133.9,11.49]
[1726157513370,3.69490512,133.94,133.9,11.49]
[1726157514371,3.3603,133.93,133.9,11.49]
[1726157515062,3.3603,133.93,133.89,11.49]
[1726157515655,3.7524279,133.94,133.89,11.49]
[1726157515966,11.49,133.95,133.89,11.49]
[1726157516356,11.49,133.95,133.87,6.5936]
[1726157516562,11.49,133.94,133.88,11.49]
[1726157517354,15.17807889,133.94,133.88,11.49]
[1726157517567,11.49,133.93,133.87,14.7221]
[1726157518273,3.3605,133.92,133.87,14.7221]
[1726157518669,3.3605,133.92,133.88,11.49]
[1726157518966,6.7171,134.0,133.88,11.49]
[1726157519163,11.49,133.97,133.9,11.49]
[1726157519867,3.36,133.94,133.9,11.49]
[1726157520068,11.49,133.95,133.9,11.49]
[1726157521064,15.30808815,133.94,133.88,11.49]
[1726157521263,11.49,133.94,133.88,11.49]
[1726157521864,3.3605,133.92,133.87,18.0836]
[1726157522065,11.49,133.93,133.87,3.2321]
[1726157522462,3.3608,133.91,133.87,3.2321]
[1726157523066,3.3609,133.9,133.87,3.2321]
[1726157523270,3.70675838,133.92,133.87,3.2321]
[1726157523666,3.3609,133.9,133.87,3.2321]
[1726157523863,3.70675838,133.92,133.87,3.2321]
[1726157524065,3.70675838,133.92,133.87,14.7221]
[1726157524372,22.44,133.99,133.87,14.7221]
[1726157524677,11.49,133.93,133.87,14.7221]
[1726157524866,15.21058121,133.93,133.87,14.7221]
[1726157525563,3.3605,133.92,133.87,14.7221]
[1726157527268,3.3605,133.92,133.88,11.49]
[1726157527770,3.3602,133.93,133.88,11.49]
[1726157530073,3.3604,133.92,133.88,11.49]
[1726157531778,3.3601,133.93,133.88,14.8512]
[1726157533970,3.3601,133.93,133.89,11.49]
[1726157537283,3.36,133.94,133.91,11.49]
[1726157537471,11.49,133.98,133.91,11.49]
[1726157537670,11.49,133.97,133.92,1.6056]
[1726157537870,1.6707,134.0,133.87,1.6801]
[1726157537871,11.49,133.95,133.87,1.6801]
[1726157538070,11.49,133.95,133.88,13.0956]
[1726157538680,3.3603,133.93,133.88,16.4568]
[1726157540190,3.3604,133.92,133.88,13.0956]
[1726157540385,11.49,133.94,133.88,1.6056]
[1726157540779,11.49,133.93,133.88,1.6056]
[1726157541177,15.2952804,133.93,133.88,1.6056]
[1726157541582,3.361,133.9,133.88,1.6056]
[1726157543590,3.8052804,133.93,133.88,1.6056]
[1726157543790,11.49,133.93,133.88,1.6056]
[1726157543984,15.2081594,133.93,133.88,1.6056]
[1726157545792,3.361,133.9,133.88,1.6056]
[1726157547092,3.3611,133.89,133.88,1.6056]
[1726157547592,3.3611,133.89,133.85,11.49]
[1726157547894,3.3614,133.88,133.85,11.49]
[1726157548188,3.3616,133.87,133.83,6.5315]
[1726157548492,11.49,133.88,133.83,3.169]
[1726157548680,3.362,133.86,133.83,3.169]
[1726157549385,3.3615,133.88,133.84,11.49]
[1726157549586,1.5637,133.95,133.86,11.49]
[1726157549988,1.5637,133.95,133.88,11.49]
[1726157550491,3.3605,133.92,133.88,11.49]
[1726157550692,3.3605,133.92,133.88,13.1472]
[1726157553396,3.3606,133.91,133.88,13.1472]
[1726157553596,3.3606,133.91,133.88,1.6572]
[1726157555394,3.3606,133.91,133.88,13.1472]
[1726157556499,11.49,133.94,133.89,11.49]
[1726157556701,11.49,133.94,133.88,1.6572]
[1726157556903,15.13783225,133.94,133.88,1.6572]
[1726157557802,3.3605,133.92,133.88,1.6572]
[1726157558405,3.3602,133.93,133.89,11.49]
[1726157563208,3.3599,133.94,133.89,14.8511]
[1726157563618,11.49,133.96,133.89,11.49]
[1726157564021,3.3602,133.93,133.89,11.49]
[1726157566116,3.3602,133.93,133.9,11.49]
[1726157567320,11.49,133.96,133.9,11.49]
[1726157568625,3.36,133.94,133.9,11.49]
[1726157573627,3.3601,133.93,133.9,11.49]
[1726157577230,3.3597,133.95,133.91,11.49]
[1726157577424,95.61827382,134.01,133.93,11.49]
[1726157577627,13.98576679,134.0,133.94,11.49]
[1726157577833,3.359,133.98,133.94,11.49]
[1726157578035,91.91787774,134.01,133.94,11.49]
[1726157578230,3.3587,133.99,133.94,11.49]
[1726157578433,3.3587,133.99,133.95,11.49]
[1726157578933,11.49,133.99,133.93,3.3078]
[1726157579320,11.49,133.97,133.93,3.3078]
[1726157579521,3.3596,133.96,133.93,3.3078]
[1726157579730,11.49,133.97,133.93,3.3078]
[1726157580334,3.3594,133.96,133.93,3.3078]
[1726157580536,11.49,133.97,133.93,3.3078]
[1726157580835,11.49,133.97,133.93,1.6305]
[1726157581233,11.49,133.94,133.89,1.5679]
[1726157581627,14.85,133.94,133.89,13.0579]
[1726157581827,11.49,133.94,133.89,13.0579]
[1726157582335,3.3603,133.93,133.89,13.0579]
[1726157582537,11.49,133.94,133.89,13.0579]
[1726157582728,3.3606,133.91,133.89,1.5679]
[1726157583038,11.49,133.94,133.89,1.5679]
[1726157583825,11.49,133.91,133.87,1.6422]
[1726157584030,11.49,133.89,133.87,1.6422]
[1726157584235,11.49,133.89,133.79,1.6069]
[1726157584236,11.49,133.89,133.83,11.49]
[1726157584536,11.49,133.9,133.84,132.63708051]
[1726157584741,11.49,133.9,133.85,1.7037]
[1726157584935,14.851,133.9,133.85,1.7037]
[1726157586540,11.49,133.9,133.85,1.7037]
[1726157586843,11.49,133.89,133.85,1.7037]
[1726157587141,3.3616,133.88,133.85,1.7037]
[1726157587930,3.3617,133.87,133.85,1.7037]
[1726157588145,15.27837678,133.89,133.85,1.7037]
[1726157588443,3.3614,133.88,133.85,1.7037]
[1726157592238,3.3616,133.87,133.85,1.7037]
[1726157593452,3.3614,133.88,133.85,1.7037]
[1726157593751,14.8514,133.88,133.85,1.7037]
[1726157598949,3.3614,133.88,133.85,1.7037]
[1726157599961,0.818,133.94,133.85,1.7037]
[1726157600155,11.49,133.9,133.85,1.7037]
[1726157600846,11.49,133.92,133.85,17.00143389]
[1726157601057,11.49,133.92,133.85,18.62183389]
[1726157601555,14.8505,133.92,133.87,3.3616]
[1726157602151,3.3606,133.91,133.86,3.3617]
[1726157604159,3.3609,133.9,133.86,3.3617]
[1726157604358,11.49,133.89,133.85,3.3241]
[1726157604564,11.49,133.89,133.85,1.7037]
[1726157605263,3.3615,133.88,133.85,1.7037]
[1726157605456,11.49,133.89,133.85,1.7037]
[1726157608263,14.8512,133.89,133.85,1.7037]
[1726157609566,14.8511,133.9,133.85,16.5558]
[1726157609757,3.3611,133.9,133.85,13.1937]
[1726157610061,11.49,133.92,133.86,11.49]
[1726157610261,11.49,133.93,133.88,11.49]
[1726157610770,3.3605,133.92,133.88,11.49]
[1726157611959,3.3605,133.92,133.87,3.3614]
[1726157611960,11.49,133.92,133.85,14.7632]
[1726157612167,11.49,133.91,133.85,14.7632]
[1726157612460,3.72945307,133.94,133.85,3.2732]
[1726157612461,11.49,133.89,133.85,3.2732]
[1726157612766,11.49,133.89,133.85,1.7037]
[1726157613160,3.3615,133.88,133.85,1.7037]
[1726157613562,11.49,133.89,133.85,1.7037]
[1726157614262,3.3615,133.88,133.85,1.7037]
[1726157615161,3.3618,133.87,133.85,1.7037]
[1726157615963,14.8515,133.88,133.85,1.7037]
[1726157616163,11.49,133.88,133.85,1.7037]
[1726157616360,11.49,133.89,133.85,1.7037]
[1726157616762,14.8513,133.89,133.85,1.7037]
[1726157616966,11.49,133.89,133.85,1.7037]
[1726157617766,3.3614,133.88,133.85,1.7037]
[1726157619167,14.8514,133.88,133.85,1.7037]
[1726157622974,3.3616,133.87,133.85,1.7037]
[1726157624771,14.8516,133.87,133.85,1.7037]
[1726157628778,3.3614,133.88,133.85,1.7037]
[1726157628978,11.49,133.87,133.85,1.7037]
[1726157629173,3.3622,133.85,133.79,1.5976]
[1726157629380,11.49,133.86,133.8,14.6353]
[1726157629770,3.3617,133.87,133.82,3.3627]
[1726157630574,14.8519,133.86,133.82,3.3627]
[1726157633175,3.3621,133.85,133.81,3.3629]
[1726157634482,3.3627,133.83,133.8,3.1453]
[1726157634881,11.49,133.85,133.8,3.1453]
[1726157635079,3.3626,133.83,133.8,6.5085]
[1726157636785,3.3629,133.82,133.8,3.1453]
[1726157637684,11.49,133.81,133.77,124.55731339]
[1726157637982,11.49,133.81,133.77,121.19331339]
[1726157638192,1.6882,133.86,133.75,14.8545]
[1726157638193,3.3638,133.78,133.75,14.8545]
[1726157638376,3.3638,133.78,133.75,3.3645]
[1726157641188,3.3637,133.79,133.75,3.3645]
[1726157642290,3.3637,133.79,133.74,3.68261682]
[1726157642493,14.8535,133.8,133.75,11.49]
[1726157642685,14.8535,133.8,133.76,3.3642]
[1726157643581,2.5072,133.86,133.76,11.49]
[1726157643785,11.49,133.84,133.77,11.49]
[1726157644094,3.3628,133.83,133.79,14.8535]
[1726157644389,11.49,133.86,133.79,11.49]
[1726157645389,1.7041,133.9,133.79,11.49]
[1726157645694,11.49,133.86,133.8,11.49]
[1726157646083,11.49,133.86,133.81,3.363]
[1726157646281,11.49,133.86,133.8,11.49]
[1726157646990,3.3622,133.85,133.8,14.8532]
[1726157648087,14.852,133.86,133.81,3.3629]
[1726157648495,11.49,133.86,133.8,11.49]
[1726157648698,11.49,133.89,133.83,11.49]
[1726157648997,11.49,133.91,133.84,11.49]
[1726157649193,3.3609,133.9,133.85,5.0622]
[1726157649995,14.8509,133.9,133.85,5.0622]
[1726157650493,5.27925307,133.94,133.86,3.3618]
[1726157650699,13.0398,133.94,133.88,11.49]
[1726157651196,13.0398,133.94,133.88,14.8511]
[1726157651197,16.3998,133.94,133.88,14.8511]
[1726157651502,4.9098,133.94,133.88,11.49]
[1726157651801,16.3998,133.94,133.88,11.49]
[1726157652197,16.3998,133.94,133.88,14.8512]
[1726157652910,3.3601,133.93,133.88,14.8512]
[1726157656192,3.3601,133.93,133.88,3.3612]
[1726157656398,3.3607,133.91,133.87,3.3616]
[1726157656703,3.3607,133.91,133.87,14.8516]
[1726157661414,3.3607,133.91,133.88,11.49]
[1726157662217,3.3604,133.92,133.88,14.8512]
[1726157663212,3.3606,133.91,133.88,14.8512]
[1726157663810,3.3605,133.92,133.89,3.3611]
[1726157664410,91.95295599,133.97,133.91,11.49]
[1726157664608,11.49,133.99,133.93,11.49]
[1726157665009,3.3592,133.97,133.93,14.8501]
[1726157665607,3.3593,133.96,133.93,11.49]
[1726157666217,3.3591,133.98,133.93,11.49]
[1726157666712,3.3591,133.98,133.94,11.49]
[1726157667220,3.3587,133.99,133.94,11.49]
[1726157667606,11.49,134.01,133.96,11.49]
[1726157667807,3.3582,134.01,133.96,11.49]
[1726157668422,3.3582,134.01,133.97,11.49]
[1726157669815,3.3578,134.02,133.97,11.49]
[1726157670004,3.3578,134.02,133.98,11.49]